lending/lending_fUSD_20260222
["ID","MTS","AMOUNT","RATE_DAILY","PERIOD"]
[406344477,1771770644691,-152.33380612,0.00040773,7]
[406344478,1771770644700,-150.0,0.00040773,7]
[406344479,1771770644709,-260.14821752,0.00040773,7]
[406344480,1771770644719,-150.0,0.00040773,7]
[406344481,1771770644728,-150.0,0.00040773,7]
[406344482,1771770644737,-150.0,0.00040773,7]
[406344483,1771770644746,-151.0,0.00040773,120]
[406344484,1771770644755,-151.0,0.00040773,120]
[406344485,1771770644764,-151.0,0.00040773,120]
[406344486,1771770644773,-152.344841,0.00040773,120]
[406344487,1771770644783,-309.02112,0.00040773,7]
[406344488,1771770644792,-746.312741,0.00040773,120]
[406344489,1771770644801,-309.02112,0.00040773,7]
[406344490,1771770644810,-746.312741,0.00040773,120]
[406344491,1771770644819,-309.02112,0.00040773,7]
[406344492,1771770644829,-746.312741,0.00040773,120]
[406344493,1771770644838,-309.02112,0.00040773,7]
[406344494,1771770644847,-746.312741,0.00040773,120]
[406344495,1771770644856,-1000.0,0.00040774,14]
[406344496,1771770644867,-182.60301976,0.00040818,7]
[406344497,1771770644876,-182.60301976,0.00040864,7]
[406344498,1771770644886,-166.76,0.00040886,2]
[406344499,1771770644895,-182.60301976,0.0004091,7]
[406344500,1771770644904,-500.0,0.00040949,2]
[406344501,1771770644915,-89515.0,0.0004095,60]
[406344502,1771770644926,-182.60301976,0.00040956,7]
[406344503,1771770644936,-10000.0,0.00041,120]
[406344504,1771770644946,-10000.0,0.00041,120]
[406344505,1771770644958,-10000.0,0.00041,120]
[406344506,1771770644967,-153.0,0.00041,120]
[406344507,1771770644978,-182.60301976,0.00041002,7]
[406344508,1771770644993,-169.05339653,0.00041031,2]
[406344509,1771770645007,-182.60301976,0.00041047,7]
[406344510,1771770645016,-1000.0,0.00041048,14]
[406344511,1771770645026,-182.60301976,0.00041093,7]
[406344512,1771770645037,-800.0,0.00041096,14]
[406344513,1771770645047,-800.0,0.00041096,14]
[406344514,1771770645056,-800.0,0.00041096,14]
[406344515,1771770645067,-800.0,0.00041096,14]
[406344516,1771770645077,-800.0,0.00041096,14]
[406344517,1771770645087,-800.0,0.00041096,14]
[406344518,1771770645097,-800.0,0.00041096,14]
[406344519,1771770645107,-408.16029173,0.00041096,14]
[406344520,1771770645117,-800.0,0.00041096,14]
[406344521,1771770645127,-800.0,0.00041096,14]
[406344522,1771770645136,-800.0,0.00041096,14]
[406344523,1771770645146,-800.0,0.00041096,14]
[406344524,1771770645155,-800.0,0.00041096,14]
[406344525,1771770645164,-800.0,0.00041096,14]
[406344526,1771770645173,-800.0,0.00041096,14]
[406344527,1771770645182,-800.0,0.00041096,14]
[406344528,1771770645191,-151.0,0.00041096,120]
[406344529,1771770645201,-151.0,0.00041096,7]
[406344530,1771770645212,-151.0,0.00041096,120]
[406344531,1771770645221,-151.0,0.00041096,31]
[406344532,1771770645231,-191.974451,0.00041096,31]
[406344533,1771770645241,-182.60301976,0.00041139,30]
[406344534,1771770645251,-304.59,0.00041144,120]
[406344535,1771770645260,-150.0,0.0004115,30]
[406344536,1771770645272,-182.60301976,0.00041185,30]
[406344537,1771770645282,-11667.65,0.000412,2]
[406344538,1771770645293,-182.60301976,0.0004123,30]
[406344539,1771770645303,-182.60301976,0.00041276,30]
[406344540,1771770645312,-1000.0,0.00041322,30]
[406344541,1771770645321,-182.60301976,0.00041322,30]
[406344542,1771770645330,-182.60301976,0.00041368,30]
[406344543,1771770645340,-182.60301976,0.00041413,30]
[406344544,1771770645349,-182.60301976,0.00041459,30]
[406344545,1771770645359,-182.60301976,0.00041505,30]
[406344546,1771770645367,-150.0,0.00041528,30]
[406344547,1771770645376,-182.60301976,0.00041551,30]
[406344548,1771770645386,-199.86,0.00041592,60]
[406344549,1771770645395,-1000.0,0.00041596,30]
[406344550,1771770645405,-182.60301976,0.00041596,30]
[406344551,1771770645414,-182.60301976,0.00041642,30]
[406344552,1771770645423,-182.60301976,0.00041688,30]
[406344553,1771770645432,-182.60301976,0.00041734,30]
[406344554,1771770645441,-182.60301976,0.00041779,30]
[406344555,1771770645452,-182.60301976,0.00041825,30]
[406344556,1771770645462,-1000.0,0.0004187,30]
[406344557,1771770645473,-182.60301976,0.00041871,30]
[406344558,1771770645483,-153.0,0.000419,120]
[406344559,1771770645493,-150.0,0.00041905,30]
[406344560,1771770645504,-150.0,0.00041905,30]
[406344561,1771770645515,-150.0,0.00041905,30]
[406344562,1771770645524,-182.60301976,0.00041917,30]
[406344563,1771770645533,-182.60301976,0.00041962,30]
[406344564,1771770645542,-166.0,0.00042,2]
[406344565,1771770645552,-10000.0,0.00042,120]
[406344566,1771770645561,-10000.0,0.00042,120]
[406344567,1771770645572,-10000.0,0.00042,120]
[406344568,1771770645582,-400.0,0.00042,2]
[406344569,1771770645760,-182.60301976,0.00042008,30]
[406344570,1771770645770,-1000.0,0.00042014,2]
[406344571,1771770645779,-182.60301976,0.00042054,30]
[406344572,1771770645788,-182.60301976,0.000421,30]
[406344573,1771770645798,-1000.0,0.00042144,30]
[406344574,1771770645807,-182.60301976,0.00042146,30]
[406344575,1771770645816,-182.60301976,0.00042191,30]
[406344576,1771770645825,-182.60301976,0.00042237,30]
[406344577,1771770645835,-150.0,0.00042283,30]
[406344578,1771770645846,-150.0,0.00042283,30]
[406344579,1771770645855,-182.60301976,0.00042283,30]
[406344580,1771770645864,-150.0,0.00042283,30]
[406344581,1771770645873,-89515.0,0.000423,60]
[406344582,1771770645883,-182.60301976,0.00042329,30]
[406344583,1771770645892,-182.60301976,0.00042374,30]
[406344584,1771770645902,-200.0,0.00042381,120]
[406344585,1771770645911,-12697.58,0.000424,14]
[406344586,1771770645922,-169.05339653,0.00042408,7]
[406344587,1771770645932,-182.60301976,0.0004242,30]
[406344588,1771770645942,-182.60301976,0.00042466,30]
[406344589,1771770645951,-182.60301976,0.00042512,30]
[406344590,1771770645962,-152.59,0.00042523,120]
[406344591,1771770645973,-182.60301976,0.00042557,30]
[406344592,1771770645984,-182.60301976,0.00042603,30]
[406344593,1771770645997,-182.60301976,0.00042649,30]
[406344594,1771770646007,-150.0,0.0004266,30]
[406344595,1771770646018,-182.60301976,0.00042695,30]
[406344596,1771770646028,-182.60301976,0.0004274,30]
[406344597,1771770646039,-1317.6220629,0.00042771,15]
[406344598,1771770646049,-182.60301976,0.00042786,30]
[406344599,1771770646058,-182.60301976,0.00042832,30]
[406344600,1771770646067,-3443.16368822,0.00042868,15]
[406344601,1771770646077,-227.96,0.0004287,14]
[406344602,1771770646087,-182.60301976,0.00042878,30]
[406344603,1771770646096,-1505.25289018,0.000429,2]
[406344604,1771770646106,-153.0,0.000429,120]
[406344605,1771770646115,-182.60301976,0.00042923,30]
[406344606,1771770646124,-182.60301976,0.00042969,30]
[406344607,1771770646134,-400.0,0.00043,10]
[406344608,1771770646143,-165.0,0.00043,30]
[406344609,1771770646152,-10026.8822956,0.00043,30]
[406344610,1771770646162,-11667.65,0.00043,2]
[406344611,1771770646170,-30000.0,0.00043,3]
[406344612,1771770646179,-10000.0,0.00043,120]
[406344613,1771770646188,-10000.0,0.00043,120]
[406344614,1771770646198,-182.60301976,0.00043015,30]
[406344615,1771770646207,-4583.6033389,0.00043031,9]
[406344616,1771770646216,-50000.0,0.00043037,2]
[406344617,1771770646225,-151.0,0.00043037,120]
[406344618,1771770646234,-151.0,0.00043037,120]
[406344619,1771770646243,-151.0,0.00043037,120]
[406344620,1771770646252,-151.0,0.00043037,120]
[406344621,1771770646261,-259.721724,0.00043037,120]
[406344622,1771770646271,-259.721724,0.00043037,120]
[406344623,1771770646280,-259.721724,0.00043037,120]
[406344624,1771770646289,-259.721724,0.00043037,120]
[406344625,1771770646298,-151.0,0.00043037,120]
[406344626,1771770646309,-150.0,0.00043038,30]
[406344627,1771770646318,-150.0,0.00043038,30]
[406344628,1771770646329,-150.0,0.00043038,30]
[406344629,1771770646339,-150.0,0.00043038,30]
[406344630,1771770646350,-150.0,0.00043038,30]
[406344631,1771770646360,-150.0,0.00043038,30]
[406344632,1771770646371,-150.0,0.00043038,30]
[406344633,1771770646381,-182.60301976,0.00043061,30]
[406344634,1771770646390,-284.23,0.000431,30]
[406344635,1771770646402,-182.60301976,0.00043106,30]
[406344636,1771770646412,-166.76,0.00043135,2]
[406344637,1771770646424,-182.60301976,0.00043152,30]
[406344638,1771770646434,-182.60301976,0.00043198,30]
[406344639,1771770646445,-23421.86393432,0.0004321,120]
[406344640,1771770646455,-182.60301976,0.00043244,30]
[406344641,1771770646465,-182.60301976,0.0004329,30]
[406344642,1771770646475,-182.60301976,0.00043335,30]
[406344643,1771770646486,-182.60301976,0.00043381,30]
[406344644,1771770646496,-150.0,0.00043415,30]
[406344645,1771770646506,-182.60301976,0.00043427,30]
[406344646,1771770646517,-180.0,0.00043452,120]
[406344647,1771770646527,-180.0,0.00043452,120]
[406344648,1771770646537,-182.60301976,0.00043473,30]
[406344649,1771770646548,-182.60301976,0.00043518,30]
[406344650,1771770646558,-182.60301976,0.00043564,30]
[406344651,1771770646569,-182.60301976,0.0004361,30]
[406344652,1771770646581,-500.0,0.00043649,2]
[406344653,1771770646591,-89515.0,0.0004365,60]
[406344654,1771770646600,-182.60301976,0.00043656,30]
[406344655,1771770646610,-500.0,0.00043659,60]
[406344656,1771770646619,-500.0,0.00043659,60]
[406344657,1771770646629,-500.0,0.00043659,60]
[406344658,1771770646639,-182.60301976,0.00043701,30]
[406344659,1771770646648,-182.60301976,0.00043747,30]
[406344660,1771770646658,-169.05339653,0.00043785,13]
[406344661,1771770646667,-150.0,0.00043793,30]
[406344662,1771770646677,-150.0,0.00043793,30]
[406344663,1771770646686,-182.60301976,0.00043793,30]
[406344664,1771770646695,-150.0,0.00043793,30]
[406344665,1771770646705,-276.5,0.00043793,14]
[406344666,1771770646714,-1000.0,0.000438,30]
[406344667,1771770646724,-12697.58,0.000438,14]
[406344668,1771770646733,-1588.46153846,0.00043808,120]
[406344669,1771770646742,-200.64803783,0.00043836,2]
[406344670,1771770646751,-800.0,0.00043836,30]
[406344671,1771770646760,-182.60301976,0.00043839,30]
[406344672,1771770646769,-182.60301976,0.00043884,30]
[406344673,1771770646779,-153.0,0.000439,120]
[406344674,1771770646788,-2000.0,0.000439,7]
[406344675,1771770646798,-2571.15316202,0.0004393,2]
[406344676,1771770646807,-182.60301976,0.0004393,30]
[406344677,1771770646817,-2840.0,0.00043932,16]
[406344678,1771770646826,-182.60301976,0.00043976,30]
[406344679,1771770646835,-200.0,0.00043981,120]
[406344680,1771770646844,-2793.0,0.00043998,16]
[406344681,1771770646853,-500.0,0.00043999,30]
[406344682,1771770646864,-165.0,0.00044,30]
[406344683,1771770646876,-10000.0,0.00044,120]
[406344684,1771770646886,-30360.8599326,0.00044,2]
[406344685,1771770646895,-1204.27,0.00044,30]
[406344686,1771770646905,-182.60301976,0.00044022,30]
[406344687,1771770646916,-1000.0,0.00044063,120]
[406344688,1771770646929,-1000.0,0.00044063,120]
[406344689,1771770646939,-1000.0,0.00044063,120]
[406344690,1771770646950,-1000.0,0.00044063,120]
[406344691,1771770646960,-1000.0,0.00044063,120]
[406344692,1771770646970,-1000.0,0.00044063,120]
[406344693,1771770646980,-182.60301976,0.00044067,30]
[406344694,1771770646991,-182.60301976,0.00044113,30]
[406344695,1771770647001,-300.0,0.00044124,2]
[406344696,1771770647010,-182.60301976,0.00044159,30]
[406344697,1771770647019,-150.0,0.0004417,30]
[406344698,1771770647029,-150.0,0.0004417,30]
[406344699,1771770647038,-150.0,0.0004417,30]
[406344700,1771770647047,-182.60301976,0.00044205,30]
[406344701,1771770647056,-182.60301976,0.00044251,30]
[406344702,1771770647066,-30867.0214836,0.00044257,2]
[406344703,1771770647075,-2840.0,0.00044271,16]
[406344704,1771770647084,-182.60301976,0.00044296,30]
[406344705,1771770647093,-182.60301976,0.00044342,30]
[406344706,1771770647104,-151.0,0.00044383,120]
[406344707,1771770647113,-500.0,0.00044383,2]
[406344708,1771770647122,-500.0,0.00044383,2]
[406344709,1771770647131,-500.0,0.00044383,2]
[406344710,1771770647140,-500.0,0.00044383,2]
[406344711,1771770647150,-500.0,0.00044383,2]
[406344712,1771770647159,-500.0,0.00044383,2]
[406344713,1771770647168,-500.0,0.00044383,2]
[406344714,1771770647178,-500.0,0.00044383,2]
[406344715,1771770647188,-500.0,0.00044383,2]
[406344716,1771770647197,-500.0,0.00044383,5]
[406344717,1771770647207,-500.0,0.00044383,5]
[406344718,1771770647217,-500.0,0.00044383,5]
[406344719,1771770647227,-500.0,0.00044383,5]
[406344720,1771770647237,-500.0,0.00044383,120]
[406344721,1771770647246,-239.04610872,0.00044383,120]
[406344722,1771770647255,-5568.25,0.00044383,120]
[406344723,1771770647264,-5568.25,0.00044383,120]
[406344724,1771770647274,-5568.25,0.00044383,120]
[406344725,1771770647284,-1392.06,0.00044383,120]
[406344726,1771770647294,-1392.06,0.00044383,120]
[406344727,1771770647305,-1392.06,0.00044383,120]
[406344728,1771770647314,-500.0,0.00044383,120]
[406344729,1771770647323,-500.0,0.00044383,120]
[406344730,1771770647332,-500.0,0.00044383,120]
[406344731,1771770647342,-360.88870981,0.00044383,120]
[406344732,1771770647351,-500.0,0.00044383,2]
[406344733,1771770647361,-500.0,0.00044383,2]
[406344734,1771770647370,-574.97601008,0.00044383,2]
[406344735,1771770647379,-500.0,0.00044383,2]
[406344736,1771770647388,-500.0,0.00044383,2]
[406344737,1771770647398,-153.1974637,0.00044383,2]
[406344738,1771770647408,-500.0,0.00044383,2]
[406344739,1771770647418,-503.17853327,0.00044383,120]
[406344740,1771770647428,-151.0,0.00044383,120]
[406344741,1771770647437,-5568.25,0.00044383,120]
[406344742,1771770647448,-5568.25,0.00044383,120]
[406344743,1771770647458,-5568.25,0.00044383,120]
[406344744,1771770647467,-5568.25,0.00044383,120]
[406344745,1771770647477,-5568.25,0.00044383,120]
[406344746,1771770647486,-5568.25,0.00044383,120]
[406344747,1771770647495,-5568.25,0.00044383,120]
[406344748,1771770647504,-5568.25,0.00044383,120]
[406344749,1771770647514,-5568.25,0.00044383,120]
[406344750,1771770647524,-5568.25,0.00044383,120]
[406344751,1771770647533,-5568.25,0.00044383,120]
[406344752,1771770647543,-5568.25,0.00044383,120]
[406344753,1771770647552,-5568.25,0.00044383,120]
[406344754,1771770647567,-5568.25,0.00044383,120]
[406344755,1771770647579,-5568.25,0.00044383,120]
[406344756,1771770647591,-5568.25,0.00044383,120]
[406344757,1771770647604,-5568.25,0.00044383,120]
[406344758,1771770647616,-5568.25,0.00044383,120]
[406344759,1771770647628,-678.633723,0.00044383,120]
[406344760,1771770647639,-678.633723,0.00044383,120]
[406344761,1771770647649,-430.01122581,0.00044383,90]
[406344762,1771770647659,-500.0,0.00044383,120]
[406344763,1771770647671,-500.0,0.00044383,120]
[406344764,1771770647683,-500.0,0.00044383,120]
[406344765,1771770647695,-500.0,0.00044383,120]
[406344766,1771770647708,-500.0,0.00044383,120]
[406344767,1771770647719,-500.0,0.00044383,120]
[406344768,1771770647730,-500.0,0.00044383,120]
[406344769,1771770647742,-500.0,0.00044383,120]
[406344770,1771770647753,-500.0,0.00044383,120]
[406344771,1771770647767,-500.0,0.00044383,120]
[406344772,1771770647779,-500.0,0.00044383,120]
[406344773,1771770647792,-500.0,0.00044383,120]
[406344774,1771770647804,-500.0,0.00044383,120]
[406344775,1771770647815,-500.0,0.00044383,120]
[406344776,1771770647826,-564.13516844,0.00044383,120]
[406344777,1771770647837,-14639.63,0.00044383,120]
[406344778,1771770647850,-14639.63,0.00044383,120]
[406344779,1771770647862,-14639.63,0.00044383,120]
[406344780,1771770647872,-14639.63,0.00044383,120]
[406344781,1771770647883,-14639.63,0.00044383,120]
[406344782,1771770647894,-14639.63,0.00044383,120]
[406344783,1771770647906,-14639.63,0.00044383,120]
[406344784,1771770647925,-14639.63,0.00044383,120]
[406344785,1771770647936,-14639.63,0.00044383,120]
[406344786,1771770647947,-14639.63,0.00044383,120]
[406344787,1771770647959,-14639.63,0.00044383,120]
[406344788,1771770647970,-14639.63,0.00044383,120]
[406344789,1771770647981,-14639.63,0.00044383,120]
[406344790,1771770647993,-14639.63,0.00044383,120]
[406344791,1771770648004,-14639.63,0.00044383,120]
[406344792,1771770648016,-14639.63,0.00044383,120]
[406344793,1771770648026,-14639.63,0.00044383,120]
[406344794,1771770648037,-500.0,0.00044383,120]
[406344795,1771770648048,-500.0,0.00044383,120]
[406344796,1771770648059,-500.0,0.00044383,120]
[406344797,1771770648070,-500.0,0.00044383,120]
[406344798,1771770648080,-500.0,0.00044383,120]
[406344799,1771770648092,-500.0,0.00044383,120]
[406344800,1771770648104,-157.59139204,0.00044383,120]
[406344801,1771770648115,-865.65197602,0.00044383,30]
[406344802,1771770648126,-500.0,0.00044383,120]
[406344803,1771770648138,-500.0,0.00044383,120]
[406344804,1771770648150,-500.0,0.00044383,120]
[406344805,1771770648161,-500.0,0.00044383,120]
[406344806,1771770648175,-500.0,0.00044383,120]
[406344807,1771770648186,-500.0,0.00044383,120]
[406344808,1771770648199,-480.82,0.00044383,120]
[406344809,1771770648210,-500.0,0.00044383,120]
[406344810,1771770648220,-439.72064626,0.00044383,120]
[406344811,1771770648232,-440.0,0.00044383,120]
[406344812,1771770648244,-505.31118271,0.00044383,7]
[406344813,1771770648254,-500.0,0.00044383,120]
[406344814,1771770648265,-500.0,0.00044383,120]
[406344815,1771770648277,-500.0,0.00044383,120]
[406344816,1771770648288,-500.0,0.00044383,120]
[406344817,1771770648298,-500.0,0.00044383,120]
[406344818,1771770648309,-500.0,0.00044383,120]
[406344819,1771770648319,-500.0,0.00044383,120]
[406344820,1771770648330,-500.0,0.00044383,120]
[406344821,1771770648340,-500.0,0.00044383,120]
[406344822,1771770648351,-500.0,0.00044383,120]
[406344823,1771770648361,-500.0,0.00044383,120]
[406344824,1771770648371,-500.0,0.00044383,120]
[406344825,1771770648382,-500.0,0.00044383,120]
[406344826,1771770648391,-500.0,0.00044383,120]
[406344827,1771770648402,-500.0,0.00044383,120]
[406344828,1771770648412,-500.0,0.00044383,120]
[406344829,1771770648422,-500.0,0.00044383,120]
[406344830,1771770648435,-512.16833799,0.00044383,120]
[406344831,1771770648446,-500.0,0.00044383,2]
[406344832,1771770648458,-500.0,0.00044383,2]
[406344833,1771770648468,-500.0,0.00044383,2]
[406344834,1771770648479,-500.0,0.00044383,2]
[406344835,1771770648489,-500.0,0.00044383,2]
[406344836,1771770648499,-500.0,0.00044383,2]
[406344837,1771770648509,-500.0,0.00044383,2]
[406344838,1771770648520,-500.0,0.00044383,2]
[406344839,1771770648531,-500.9,0.00044383,2]
[406344840,1771770648542,-500.0,0.00044383,120]
[406344841,1771770648554,-435.62,0.00044383,120]
[406344842,1771770648565,-258.475464,0.00044383,7]
[406344843,1771770648576,-151.0,0.00044383,120]
[406344844,1771770648588,-151.0,0.00044383,31]
[406344845,1771770648598,-182.60301976,0.00044388,30]
[406344846,1771770648609,-150.0,0.000444,120]
[406344847,1771770648620,-150.0,0.000444,120]
[406344848,1771770648630,-150.0,0.000444,120]
[406344849,1771770648640,-150.0,0.000444,120]
[406344850,1771770648650,-182.60301976,0.00044434,30]
[406344851,1771770648660,-734.0,0.00044461,30]
[406344852,1771770648670,-182.60301976,0.00044479,30]
[406344853,1771770648680,-726.0,0.00044487,30]
[406344854,1771770648691,-182.60301976,0.00044525,30]
[406344855,1771770648702,-2840.0,0.00044545,16]
[406344856,1771770648713,-150.0,0.00044548,30]
[406344857,1771770648722,-304.59,0.00044569,120]
[406344858,1771770648732,-182.60301976,0.00044571,30]
[406344859,1771770648742,-182.60301976,0.00044617,30]
[406344860,1771770648752,-182.60301976,0.00044662,30]
[406344861,1771770648762,-182.60301976,0.00044708,30]
[406344862,1771770648772,-182.60301976,0.00044754,30]
[406344863,1771770648783,-303.81833795,0.00044755,60]
[406344864,1771770648793,-500.0,0.00044755,60]
[406344865,1771770648802,-182.60301976,0.000448,30]
[406344866,1771770648812,-891.02831,0.0004484,120]
[406344867,1771770648822,-891.02831,0.0004484,120]
[406344868,1771770648832,-891.02831,0.0004484,120]
[406344869,1771770648842,-891.02831,0.0004484,120]
[406344870,1771770648851,-891.02831,0.0004484,120]
[406344871,1771770648861,-182.60301976,0.00044845,30]
[406344872,1771770648871,-548.58108644,0.0004489,120]
[406344873,1771770648881,-182.60301976,0.00044891,30]
[406344874,1771770648891,-153.0,0.000449,120]
[406344875,1771770648902,-150.0,0.00044925,30]
[406344876,1771770648912,-182.60301976,0.00044937,30]
[406344877,1771770648926,-2840.0,0.00044977,16]
[406344878,1771770648936,-182.60301976,0.00044983,30]
[406344879,1771770648946,-14639.63,0.00044999,120]
[406344880,1771770648956,-150.0,0.00045,61]
[406344881,1771770648967,-89515.0,0.00045,60]
[406344882,1771770648977,-805.7,0.00045,120]
[406344883,1771770648987,-5648.39,0.00045,120]
[406344884,1771770648998,-1113.55,0.00045,30]
[406344885,1771770649008,-179.48,0.00045,30]
[406344886,1771770649020,-182.60301976,0.00045028,30]
[406344887,1771770649031,-182.60301976,0.00045074,30]
[406344888,1771770649041,-360.37105782,0.000451,120]
[406344889,1771770649053,-182.60301976,0.0004512,30]
[406344890,1771770649065,-1317.6220629,0.0004516,15]
[406344891,1771770649076,-345.3,0.00045161,120]
[406344892,1771770649087,-169.05339653,0.00045162,18]
[406344893,1771770649100,-3443.16368822,0.00045163,15]
[406344894,1771770649112,-182.60301976,0.00045166,30]
[406344895,1771770649123,-406.36719857,0.00045166,2]
[406344896,1771770649134,-150.0,0.000452,31]
[406344897,1771770649144,-160.6,0.000452,87]
[406344898,1771770649156,-182.60301976,0.00045211,30]
[406344899,1771770649166,-151.0,0.00045257,120]
[406344900,1771770649177,-182.60301976,0.00045257,30]
[406344901,1771770649187,-151.0,0.0004526,120]
[406344902,1771770649197,-155.0,0.0004526,120]
[406344903,1771770649209,-500.0,0.0004526,2]
[406344904,1771770649220,-5568.25,0.0004526,120]
[406344905,1771770649231,-5568.25,0.0004526,120]
[406344906,1771770649242,-5568.25,0.0004526,120]
[406344907,1771770649254,-5568.25,0.0004526,120]
[406344908,1771770649264,-5568.25,0.0004526,120]
[406344909,1771770649274,-5568.25,0.0004526,120]
[406344910,1771770649286,-5568.25,0.0004526,120]
[406344911,1771770649297,-5568.25,0.0004526,120]
[406344912,1771770649309,-5568.25,0.0004526,120]
[406344913,1771770649321,-5568.25,0.0004526,120]
[406344914,1771770649331,-5568.25,0.0004526,120]
[406344915,1771770649343,-5568.25,0.0004526,120]
[406344916,1771770649353,-5568.25,0.0004526,120]
[406344917,1771770649363,-5568.25,0.0004526,120]
[406344918,1771770649373,-5568.25,0.0004526,120]
[406344919,1771770649384,-5568.25,0.0004526,120]
[406344920,1771770649394,-5568.25,0.0004526,120]
[406344921,1771770649406,-5568.25,0.0004526,120]
[406344922,1771770649416,-5568.25,0.0004526,120]
[406344923,1771770649428,-5568.25,0.0004526,120]
[406344924,1771770649439,-5568.33,0.0004526,120]
[406344925,1771770649450,-1392.06,0.0004526,120]
[406344926,1771770649460,-1392.06,0.0004526,120]
[406344927,1771770649471,-1392.06,0.0004526,120]
[406344928,1771770649483,-1392.06,0.0004526,120]
[406344929,1771770649494,-1392.06,0.0004526,120]
[406344930,1771770649504,-1392.06,0.0004526,120]
[406344931,1771770649515,-1392.06,0.0004526,120]
[406344932,1771770649525,-1392.06,0.0004526,120]
[406344933,1771770649536,-1392.06,0.0004526,120]
[406344934,1771770649547,-1392.06,0.0004526,120]
[406344935,1771770649559,-1392.06,0.0004526,120]
[406344936,1771770649758,-1392.06,0.0004526,120]
[406344937,1771770649769,-1392.06,0.0004526,120]
[406344938,1771770649779,-1392.06,0.0004526,120]
[406344939,1771770649788,-1392.06,0.0004526,120]
[406344940,1771770649798,-1392.06,0.0004526,120]
[406344941,1771770649807,-1392.06,0.0004526,120]
[406344942,1771770649817,-1392.06,0.0004526,120]
[406344943,1771770649826,-1392.06,0.0004526,120]
[406344944,1771770649835,-1392.06,0.0004526,120]
[406344945,1771770649845,-1392.14,0.0004526,120]
[406344946,1771770649855,-5568.25,0.0004526,120]
[406344947,1771770649864,-5568.25,0.0004526,120]
[406344948,1771770649873,-5568.25,0.0004526,120]
[406344949,1771770649883,-5568.25,0.0004526,120]
[406344950,1771770649892,-5568.25,0.0004526,120]
[406344951,1771770649901,-5568.33,0.0004526,120]
[406344952,1771770649911,-151.0,0.0004526,120]
[406344953,1771770649923,-151.0,0.0004526,120]
[406344954,1771770649933,-280.334024,0.0004526,120]
[406344955,1771770649943,-309.02112,0.0004526,7]
[406344956,1771770649952,-746.312741,0.0004526,120]
[406344957,1771770649962,-309.02112,0.0004526,7]
[406344958,1771770649972,-746.312741,0.0004526,120]
[406344959,1771770649981,-309.02112,0.0004526,7]
[406344960,1771770649991,-746.312741,0.0004526,120]
[406344961,1771770650000,-309.02112,0.0004526,7]
[406344962,1771770650010,-746.312741,0.0004526,120]
[406344963,1771770650019,-150.43385006,0.00045261,2]
[406344964,1771770650028,-11880.92022949,0.00045261,2]
[406344965,1771770650038,-4108.26240403,0.00045261,4]
[406344966,1771770650047,-154.48353086,0.00045261,30]
[406344967,1771770650056,-14639.63,0.00045262,120]
[406344968,1771770650066,-14639.63,0.00045262,120]
[406344969,1771770650075,-14639.63,0.00045262,120]
[406344970,1771770650084,-14639.63,0.00045262,120]
[406344971,1771770650093,-14639.63,0.00045262,120]
[406344972,1771770650103,-14639.78008739,0.00045262,120]
[406344973,1771770650112,-167.83720802,0.00045263,30]
[406344974,1771770650121,-167.83720802,0.00045263,30]
[406344975,1771770650131,-167.83720802,0.00045263,30]
[406344976,1771770650141,-151.0,0.00045263,120]